fUST/lending_fUST_20241006
["ID","MTS","AMOUNT","RATE_DAILY","PERIOD"]
[339933929,1728162004738,500.0,0.0001,2]
[339933930,1728162006011,500.0,0.0001,2]
[339933932,1728162169493,-156.0,0.00021,120]
[339933960,1728162632373,-159.257695,0.00012,2]
[339933962,1728162632384,-543.312247,0.00012,2]
[339933964,1728162632395,-1981.27871375,0.00012244,2]
[339933983,1728162638499,-661.78500375,0.00012244,2]
[339933984,1728162638511,-300.0,0.00012296,2]
[339933985,1728162638520,-300.0,0.00012296,2]
[339933986,1728162638530,-24900.0,0.00012297,2]
[339933987,1728162638542,-159.257695,0.00012312,2]
[339933988,1728162638554,-159.257695,0.00012625,2]
[339933989,1728162638564,-529.7166378,0.0001311,2]
[339933990,1728162638574,-153.0,0.00013342,2]
[339933991,1728162638583,-713.39960878,0.00013348,2]
[339933992,1728162638593,-150.0,0.00013448,2]
[339933993,1728162638605,-525.0,0.00013448,2]
[339933994,1728162638615,-1218.0,0.00013448,2]
[339933995,1728162638626,-420.0,0.00013495,2]
[339933996,1728162638637,-420.0,0.00013526,2]
[339933997,1728162638650,-5468.38685435,0.00013551,2]
[339933998,1728162638663,-153.0,0.00013552,2]
[339933999,1728162638674,-1000.0,0.00013588,2]
[339934000,1728162638684,-150.0,0.00013593,2]
[339934001,1728162638693,-1559.47013037,0.00013598,2]
[339934002,1728162638703,-529.7166378,0.0001361,2]
[339934003,1728162638712,-326.828,0.00013668,2]
[339934004,1728162638722,-85939.02722388,0.00013668,2]
[339934005,1728162638734,-10781.87902942,0.00013668,2]
[339934006,1728162638743,-64394.42636058,0.00013678,2]
[339934007,1728162638755,-449.46135705,0.00013678,2]
[339934013,1728162643467,-6672.16162547,0.00013678,2]
[339934215,1728163719586,808.41629174,9e-05,2]
[339934260,1728163832488,-516.146635,0.00012,2]
[339934262,1728163832502,-300.0,0.00012419,2]
[339934263,1728163832516,-1816.74224326,0.0001242,2]
[339934264,1728163832542,-4276.50399486,0.0001242,2]
[339934265,1728163832559,-12938.67254799,0.0001242,2]
[339934266,1728163832575,-1792.54580109,0.0001242,2]
[339934267,1728163832589,-159.30885,0.00012654,2]
[339934268,1728163832601,-159.30885,0.00012984,2]
[339934269,1728163832614,-500.0,0.0001311,2]
[339934270,1728163832627,-159.30885,0.00013314,2]
[339934271,1728163832642,-5468.38685436,0.00013398,2]
[339934272,1728163832655,-680.99850867,0.00013588,2]
[339934273,1728163832667,-2803.54663504,0.00013588,2]
[339934274,1728163832681,-738.52769993,0.00013588,2]
[339934275,1728163832696,-1403.52311736,0.00013598,2]
[339934276,1728163832713,-150.448302,0.000136,2]
[339934277,1728163832724,-500.0,0.0001361,2]
[339934278,1728163832736,-420.0,0.00013627,2]
[339934279,1728163832748,-343.169,0.00013668,2]
[339934280,1728163832759,-14970.92753152,0.00013678,2]
[339934289,1728163838672,-24754.541447,0.00013678,2]
[339934290,1728163838687,-656.87,0.00013678,2]
[339934291,1728163838703,-14567.180912,0.00013678,2]
[339934292,1728163838728,-45671.1321715,0.00013678,2]
[339934297,1728163840579,-5985.80240984,0.00013678,2]
[339934298,1728163840592,-12458.09925,0.00013678,2]
[339934299,1728163840638,-77.71780114,0.00013678,2]
[339934300,1728163840649,-177.85055236,0.00013688,2]
[339934318,1728163843541,-311.69803547,0.00013688,2]
[339934319,1728163843553,-5775.86040598,0.00013688,2]
[339934320,1728163843563,-1640.26383818,0.00013688,2]
[339934321,1728163843575,-1075.48864695,0.00013688,2]
[339934326,1728164060258,154.0,0.000199,120]
[339934330,1728164377985,-152.0,0.0001118,2]
[339934331,1728164378008,-452.299367,0.00012,2]
[339934332,1728164378033,-152.0,0.0001215,2]
[339934333,1728164521759,161.672439,0.00012613,2]
[339934334,1728164521966,82.028194,0.00012617,2]
[339934338,1728164729477,-79.644245,0.00012617,2]
[339934339,1728164729503,-161.672439,0.00012622,2]
[339934340,1728164729527,-161.672439,0.00012626,2]
[339934341,1728164729552,-161.672439,0.00012631,2]
[339934342,1728164729579,-161.672439,0.00012635,2]
[339934343,1728164729603,-161.672439,0.0001264,2]
[339934344,1728164729631,-161.672439,0.00012644,2]
[339934345,1728164729659,-161.672439,0.00012649,2]
[339934346,1728164729685,-161.672439,0.00012653,2]
[339934347,1728164729709,-161.672439,0.00012658,2]
[339934348,1728164729734,-161.672439,0.00012662,2]
[339934349,1728164729759,-161.672439,0.00012667,2]
[339934350,1728164729784,-161.672439,0.00012671,2]
[339934351,1728164729808,-161.672439,0.00012676,2]
[339934352,1728164776518,-490.339303,0.00012,2]
[339934392,1728165031718,-150.0,0.000131,2]
[339934394,1728165031729,-1412.2020627,0.000131,2]
[339934395,1728165031738,-500.0,0.0001311,2]
[339934396,1728165031749,-150.0,0.00013223,2]
[339934397,1728165031760,-1247.5858448,0.00013386,2]
[339934398,1728165031775,-1014.67046642,0.00013386,2]
[339934406,1728165037837,-3463.23127707,0.00013386,2]
[339934407,1728165037850,-606.22823174,0.00013386,2]
[339934408,1728165037860,-300.0,0.00013391,2]
[339934409,1728165037870,-300.0,0.00013391,2]
[339934410,1728165037880,-2453.10330566,0.00013578,2]
[339934411,1728165037889,-186.8716472,0.00013588,2]
[339934412,1728165037899,-1000.0,0.00013588,2]
[339934413,1728165037908,-1263.17080557,0.00013598,2]
[339934414,1728165037917,-972.010977,0.0001361,2]
[339934415,1728165037930,-500.0,0.00013673,2]
[339934416,1728165037940,-556.79355992,0.00013673,2]
[339934417,1728165037951,-500.0,0.00013673,2]
[339934418,1728165037962,-500.54868513,0.00013673,2]
[339934419,1728165037971,-500.0,0.00013673,2]
[339934420,1728165037981,-500.0,0.00013673,2]
[339934421,1728165037991,-500.0,0.00013673,2]
[339934422,1728165038001,-500.0,0.00013673,2]
[339934423,1728165038011,-500.0,0.00013673,2]
[339934424,1728165038021,-500.0,0.00013673,2]
[339934425,1728165038031,-210.08588892,0.00013673,2]
[339934426,1728165038041,-500.0,0.00013673,2]
[339934427,1728165038051,-190.93114898,0.00013673,2]
[339934428,1728165038060,-500.0,0.00013673,2]
[339934429,1728165038070,-500.0,0.00013673,2]
[339934430,1728165038081,-500.0,0.00013673,2]
[339934431,1728165038091,-500.0,0.00013673,2]
[339934432,1728165038101,-498.11269694,0.00013673,2]
[339934433,1728165038111,-500.0,0.00013673,2]
[339934434,1728165038121,-500.0,0.00013673,2]
[339934435,1728165038131,-501.29766461,0.00013673,2]
[339934436,1728165038141,-198.0711407,0.00013673,2]
[339934437,1728165038150,-182.58456114,0.00013673,2]
[339934438,1728165038160,-500.0,0.00013673,2]
[339934439,1728165038170,-500.0,0.00013673,2]
[339934440,1728165038180,-274.535,0.00013673,2]
[339934441,1728165038190,-453.99900578,0.00013678,2]
[339934442,1728165038199,-9890.21185071,0.00013678,2]
[339934451,1728165039858,-58856.66633698,0.00013678,2]
[339934454,1728165042728,-44753.09539331,0.00013678,2]
[339934455,1728165042738,-7327.96876995,0.00013678,2]
[339934456,1728165042748,-10055.6984267,0.0001368,2]
[339934457,1728165042757,-11158.27763695,0.0001368,2]
[339934458,1728165042769,-1042.64461342,0.0001368,2]
[339934459,1728165042784,-11255.44239915,0.0001368,2]
[339934460,1728165042794,-22699.9947161,0.0001368,2]
[339934461,1728165042804,-1465.59375399,0.0001368,2]
[339934462,1728165042814,-90799.9788644,0.00013688,2]
[339934463,1728165042823,-20518.3125559,0.00013688,2]
[339934464,1728165042833,-2617.53745501,0.0001369,2]
[339934465,1728165042843,-500.0,0.00013698,2]
[339934466,1728165042853,-183.90589122,0.00013698,2]
[339934467,1728165042863,-563.52643616,0.00013698,2]
[339934468,1728165042872,-504.29479911,0.00013698,2]
[339934469,1728165042881,-500.0,0.00013698,2]
[339934470,1728165042891,-500.0,0.00013698,2]
[339934471,1728165042900,-500.0,0.00013698,2]
[339934472,1728165042910,-163.87142146,0.00013698,2]
[339934473,1728165042919,-500.0,0.00013698,2]
[339934474,1728165042929,-180.0,0.00013698,2]
[339934475,1728165042938,-500.0,0.00013698,2]
[339934476,1728165042947,-500.0,0.00013698,2]
[339934477,1728165042957,-500.0,0.00013698,2]
[339934478,1728165042966,-500.0,0.00013698,2]
[339934479,1728165042977,-319.37074628,0.00013698,2]
[339934480,1728165042986,-500.0,0.00013698,2]
[339934481,1728165042996,-500.0,0.00013698,2]
[339934482,1728165043006,-500.0,0.00013698,2]
[339934483,1728165043016,-500.0,0.00013698,2]
[339934484,1728165043026,-500.0,0.00013698,2]
[339934485,1728165043036,-257.80836937,0.00013698,2]
[339934486,1728165043046,-500.0,0.00013698,2]
[339934487,1728165043055,-500.0,0.00013698,2]
[339934488,1728165043065,-549.03331673,0.00013698,2]
[339934489,1728165043075,-200.0,0.00013698,2]
[339934490,1728165043085,-500.0,0.00013698,2]
[339934491,1728165043094,-500.0,0.00013698,2]
[339934492,1728165043104,-500.0,0.00013698,2]
[339934493,1728165043113,-173.85957332,0.00013698,2]
[339934494,1728165043123,-500.0,0.00013698,2]
[339934495,1728165043132,-500.0,0.00013698,2]
[339934496,1728165043142,-500.0,0.00013698,2]
[339934497,1728165043151,-500.0,0.00013698,2]
[339934498,1728165043161,-336.50621793,0.00013698,2]
[339934499,1728165043171,-500.0,0.00013698,2]
[339934500,1728165043180,-500.0,0.00013698,2]
[339934501,1728165043190,-300.0,0.00013698,2]
[339934502,1728165043199,-500.0,0.00013698,2]
[339934503,1728165043210,-500.0,0.00013698,2]
[339934504,1728165043222,-500.0,0.00013698,2]
[339934505,1728165043236,-500.0,0.00013698,2]
[339934506,1728165043249,-500.0,0.00013698,2]
[339934507,1728165043261,-151.0,0.00013698,2]
[339934508,1728165043273,-151.0,0.00013698,2]
[339934509,1728165043286,-151.0,0.00013698,2]
[339934510,1728165043297,-151.0,0.00013698,2]
[339934511,1728165043308,-151.0,0.00013698,2]
[339934512,1728165043320,-151.0,0.00013698,2]
[339934513,1728165043330,-216.951516,0.00013698,2]
[339934514,1728165043341,-151.0,0.00013698,2]
[339934515,1728165043351,-151.0,0.00013698,2]
[339934516,1728165043361,-154.789736,0.00013698,2]
[339934517,1728165043373,-500.0,0.00013698,2]
[339934518,1728165043383,-500.0,0.00013698,2]
[339934519,1728165043393,-500.0,0.00013698,2]
[339934520,1728165043404,-416.42163641,0.00013698,2]
[339934521,1728165043413,-500.0,0.00013698,2]
[339934522,1728165043422,-500.0,0.00013698,2]
[339934523,1728165043431,-500.0,0.00013698,2]
[339934524,1728165043441,-151.0,0.00013698,2]
[339934525,1728165043451,-151.0,0.00013698,2]
[339934526,1728165043461,-151.0,0.00013698,2]
[339934527,1728165043470,-172.283779,0.00013698,2]
[339934528,1728165043481,-151.0,0.00013698,2]
[339934529,1728165043490,-151.0,0.00013698,2]
[339934530,1728165043500,-151.920919,0.00013698,2]
[339934531,1728165043510,-270.79379002,0.00013698,2]
[339934532,1728165043521,-554.5,0.00013698,2]
[339934533,1728165043532,-500.0,0.00013698,2]
[339934534,1728165043543,-500.0,0.00013698,2]
[339934535,1728165043553,-500.0,0.00013698,2]
[339934536,1728165043562,-1257.56,0.00013698,2]
[339934537,1728165043572,-500.0,0.00013698,2]
[339934538,1728165043581,-500.0,0.00013698,2]
[339934539,1728165043590,-500.0,0.00013698,2]
[339934540,1728165043600,-500.0,0.00013698,2]
[339934541,1728165043609,-797.21,0.00013698,2]
[339934542,1728165043618,-151.0,0.00013698,2]
[339934543,1728165043628,-151.0,0.00013698,2]
[339934544,1728165043637,-151.0,0.00013698,2]
[339934545,1728165043648,-151.0,0.00013698,2]
[339934546,1728165043657,-500.0,0.00013698,2]
[339934547,1728165043668,-500.0,0.00013698,2]
[339934548,1728165043677,-994.42,0.00013698,2]
[339934549,1728165043687,-500.0,0.00013698,2]
[339934550,1728165043696,-500.0,0.00013698,2]
[339934551,1728165043707,-578.88,0.00013698,2]
[339934552,1728165043716,-500.0,0.00013698,2]
[339934553,1728165043725,-684.26,0.00013698,2]
[339934554,1728165043734,-500.0,0.00013698,2]
[339934555,1728165043744,-500.0,0.00013698,2]
[339934556,1728165043753,-500.0,0.00013698,2]
[339934557,1728165043762,-500.0,0.00013698,2]
[339934558,1728165043772,-500.0,0.00013698,2]
[339934559,1728165043781,-500.0,0.00013698,2]
[339934560,1728165043790,-715.88,0.00013698,2]
[339934561,1728165043799,-500.0,0.00013698,2]
[339934562,1728165043809,-500.0,0.00013698,2]
[339934563,1728165043819,-500.0,0.00013698,2]
[339934564,1728165043828,-500.0,0.00013698,2]
[339934565,1728165043838,-151.0,0.00013698,2]
[339934566,1728165043847,-151.0,0.00013698,2]
[339934567,1728165043857,-500.0,0.00013698,2]
[339934568,1728165043867,-500.0,0.00013698,2]
[339934569,1728165043877,-500.0,0.00013698,2]
[339934570,1728165043887,-500.0,0.00013698,2]
[339934571,1728165043896,-500.0,0.00013698,2]
[339934572,1728165043906,-500.0,0.00013698,2]
[339934573,1728165043916,-500.0,0.00013698,2]
[339934574,1728165043927,-500.0,0.00013698,2]
[339934575,1728165043937,-522.93,0.00013698,2]
[339934576,1728165043948,-500.0,0.00013698,2]
[339934577,1728165043959,-531.83,0.00013698,2]
[339934578,1728165043970,-500.0,0.00013698,2]
[339934579,1728165043982,-500.0,0.00013698,2]
[339934580,1728165043993,-500.0,0.00013698,2]
[339934581,1728165044003,-518.16,0.00013698,2]
[339934582,1728165044015,-231.88465532,0.00013698,2]
[339934583,1728165044026,-638.60384736,0.00013698,2]
[339934584,1728165044037,-500.0,0.00013698,2]
[339934585,1728165044047,-500.0,0.00013698,2]
[339934586,1728165044057,-500.0,0.00013698,2]
[339934587,1728165044068,-500.0,0.00013698,2]
[339934588,1728165044081,-500.82033814,0.00013698,2]
[339934589,1728165044091,-500.0,0.00013698,2]
[339934590,1728165044102,-593.59,0.00013698,2]
[339934591,1728165044114,-500.0,0.00013698,2]
[339934592,1728165044125,-175.38942812,0.00013698,2]
[339934593,1728165044136,-500.0,0.00013698,2]
[339934594,1728165044146,-500.0,0.00013698,2]
[339934595,1728165044157,-500.0,0.00013698,2]
[339934596,1728165044167,-500.0,0.00013698,2]
[339934597,1728165044179,-500.0,0.00013698,2]
[339934598,1728165044190,-500.0,0.00013698,2]
[339934599,1728165044201,-712.59,0.00013698,2]
[339934600,1728165044213,-500.0,0.00013698,2]
[339934601,1728165044223,-500.0,0.00013698,2]
[339934602,1728165044234,-500.0,0.00013698,2]
[339934603,1728165044247,-500.0,0.00013698,2]
[339934604,1728165044257,-500.0,0.00013698,2]
[339934605,1728165044268,-852.77,0.00013698,2]
[339934606,1728165044280,-500.0,0.00013698,2]
[339934607,1728165044290,-500.0,0.00013698,2]
[339934608,1728165044301,-500.0,0.00013698,2]
[339934609,1728165044310,-500.0,0.00013698,2]
[339934610,1728165044323,-500.0,0.00013698,2]
[339934611,1728165044335,-810.89,0.00013698,2]
[339934612,1728165044344,-500.0,0.00013698,2]
[339934613,1728165044355,-500.0,0.00013698,2]
[339934614,1728165044366,-528.3820321,0.00013698,2]
[339934615,1728165044376,-151.0,0.00013698,2]
[339934616,1728165044386,-151.0,0.00013698,2]
[339934617,1728165044584,-151.0,0.00013698,2]
[339934618,1728165044594,-151.0,0.00013698,2]
[339934619,1728165044605,-500.0,0.00013698,2]
[339934620,1728165044615,-151.0,0.00013698,2]
[339934621,1728165044625,-500.0,0.00013698,2]
[339934622,1728165044636,-151.0,0.00013698,2]
[339934623,1728165044647,-500.0,0.00013698,2]
[339934624,1728165044657,-151.0,0.00013698,2]
[339934625,1728165044669,-151.0,0.00013698,2]
[339934626,1728165044679,-151.0,0.00013698,2]
[339934627,1728165044691,-151.0,0.00013698,2]
[339934628,1728165044702,-151.0,0.00013698,2]
[339934629,1728165044712,-500.0,0.00013698,2]
[339934630,1728165044722,-500.0,0.00013698,2]
[339934631,1728165044732,-500.0,0.00013698,2]
[339934632,1728165044742,-500.0,0.00013698,2]
[339934633,1728165044753,-500.36826614,0.00013698,2]
[339934634,1728165044763,-513.61,0.00013698,2]
[339934635,1728165044774,-514.09377697,0.00013698,2]
[339934636,1728165044784,-636.22,0.00013698,2]
[339934637,1728165044795,-500.0,0.00013698,2]
[339934638,1728165044805,-500.0,0.00013698,2]
[339934639,1728165044815,-500.34125057,0.00013698,2]
[339934640,1728165044826,-578.31,0.00013698,2]
[339934641,1728165044836,-500.0,0.00013698,2]
[339934642,1728165044846,-500.0,0.00013698,2]
[339934643,1728165044855,-500.0,0.00013698,2]
[339934644,1728165044868,-500.0,0.00013698,2]
[339934645,1728165044878,-438.56345364,0.00013698,2]
[339934646,1728165044888,-500.0,0.00013698,2]
[339934647,1728165044898,-500.0,0.00013698,2]
[339934648,1728165044909,-824.04,0.00013698,2]
[339934649,1728165044918,-500.0,0.00013698,2]
[339934650,1728165044927,-500.0,0.00013698,2]
[339934651,1728165044936,-602.01,0.00013698,2]
[339934652,1728165044945,-621.24,0.00013698,2]
[339934653,1728165044955,-500.0,0.00013698,2]
[339934654,1728165044965,-500.0,0.00013698,2]
[339934655,1728165044976,-500.0,0.00013698,2]
[339934656,1728165044987,-506.06770112,0.00013698,2]
[339934657,1728165044998,-556.62105397,0.00013698,2]
[339934658,1728165045008,-500.0,0.00013698,2]
[339934659,1728165045019,-287.61478248,0.00013698,2]
[339934660,1728165045030,-384.54262376,0.00013698,2]
[339934661,1728165045040,-500.0,0.00013698,2]
[339934662,1728165045050,-500.0,0.00013698,2]
[339934663,1728165045059,-501.97698082,0.00013698,2]
[339934664,1728165045068,-500.0,0.00013698,2]
[339934665,1728165045078,-500.0,0.00013698,2]
[339934666,1728165045087,-745.33,0.00013698,2]
[339934667,1728165045096,-500.0,0.00013698,2]
[339934668,1728165045105,-500.0,0.00013698,2]
[339934669,1728165045114,-500.0,0.00013698,2]
[339934670,1728165045124,-500.0,0.00013698,2]
[339934671,1728165045133,-500.0,0.00013698,2]
[339934672,1728165045142,-500.0,0.00013698,2]
[339934673,1728165045151,-500.0,0.00013698,2]
[339934674,1728165045160,-254.05118698,0.00013698,2]
[339934675,1728165045170,-500.0,0.00013698,2]
[339934676,1728165045179,-500.0,0.00013698,2]
[339934677,1728165045188,-500.0,0.00013698,2]
[339934678,1728165045197,-500.0,0.00013698,2]
[339934679,1728165045207,-500.0,0.00013698,2]
[339934680,1728165045216,-500.0,0.00013698,2]
[339934681,1728165045226,-500.0,0.00013698,2]
[339934682,1728165045239,-520.02,0.00013698,2]
[339934683,1728165045249,-500.0,0.00013698,2]
[339934684,1728165045260,-500.0,0.00013698,2]
[339934685,1728165045269,-500.0,0.00013698,2]
[339934687,1728165045279,-151.0,0.00013698,2]
[339934688,1728165045289,-151.0,0.00013698,2]
[339934689,1728165045298,-151.0,0.00013698,2]
[339934690,1728165045309,-151.0,0.00013698,2]
[339934691,1728165045319,-854.82,0.00013698,2]
[339934692,1728165045327,-151.0,0.00013698,2]
[339934693,1728165045336,-393.20330711,0.00013698,2]
[339934694,1728165045345,-500.0,0.00013698,2]
[339934695,1728165045354,-758.51,0.00013698,2]
[339934696,1728165045364,-500.0,0.00013698,2]
[339934697,1728165045373,-500.0,0.00013698,2]
[339934698,1728165045382,-662.55,0.00013698,2]
[339934699,1728165045391,-500.0,0.00013698,2]
[339934700,1728165045400,-500.0,0.00013698,2]
[339934701,1728165045409,-500.0,0.00013698,2]
[339934702,1728165045420,-500.0,0.00013698,2]
[339934703,1728165045429,-500.0,0.00013698,2]
[339934704,1728165045438,-500.0,0.00013698,2]
[339934705,1728165045448,-889.76,0.00013698,2]
[339934706,1728165045458,-500.0,0.00013698,2]
[339934707,1728165045467,-500.0,0.00013698,2]
[339934708,1728165045476,-151.0,0.00013698,2]
[339934709,1728165045485,-151.0,0.00013698,2]
[339934710,1728165045495,-151.0,0.00013698,2]
[339934711,1728165045505,-151.0,0.00013698,2]
[339934712,1728165045514,-500.0,0.00013698,2]
[339934713,1728165045524,-151.0,0.00013698,2]
[339934714,1728165045534,-298.493785,0.00013698,2]
[339934715,1728165045543,-151.0,0.00013698,2]
[339934716,1728165045552,-151.0,0.00013698,2]
[339934717,1728165045561,-500.0,0.00013698,2]
[339934718,1728165045570,-151.0,0.00013698,2]
[339934719,1728165045580,-151.0,0.00013698,2]
[339934720,1728165045590,-151.0,0.00013698,2]
[339934721,1728165045599,-151.0,0.00013698,2]
[339934722,1728165045609,-151.0,0.00013698,2]
[339934723,1728165045618,-151.0,0.00013698,2]
[339934724,1728165045627,-500.0,0.00013698,2]
[339934725,1728165045636,-500.0,0.00013698,2]
[339934726,1728165045645,-500.0,0.00013698,2]
[339934727,1728165045655,-206.546465,0.00013698,2]
[339934728,1728165045664,-206.546465,0.00013698,2]
[339934729,1728165045673,-500.0,0.00013698,2]
[339934730,1728165045682,-206.546465,0.00013698,2]
[339934731,1728165045691,-206.546465,0.00013698,2]
[339934732,1728165045701,-206.546465,0.00013698,2]
[339934733,1728165045710,-206.546465,0.00013698,2]
[339934734,1728165045719,-642.0,0.00013698,2]
[339934735,1728165045729,-206.546465,0.00013698,2]
[339934736,1728165045738,-206.546465,0.00013698,2]
[339934737,1728165045747,-206.546465,0.00013698,2]
[339934738,1728165045756,-206.546465,0.00013698,2]
[339934739,1728165045766,-206.546465,0.00013698,2]
[339934740,1728165045775,-206.546465,0.00013698,2]
[339934741,1728165045785,-206.546465,0.00013698,2]
[339934742,1728165045793,-206.546465,0.00013698,2]
[339934743,1728165045802,-500.0,0.00013698,2]
[339934744,1728165045811,-206.546465,0.00013698,2]
[339934745,1728165045820,-206.546465,0.00013698,2]
[339934746,1728165045830,-206.546465,0.00013698,2]
[339934747,1728165045839,-206.546465,0.00013698,2]
[339934748,1728165045848,-206.546465,0.00013698,2]
[339934749,1728165045858,-206.546467,0.00013698,2]
[339934750,1728165045867,-500.0,0.00013698,2]
[339934751,1728165045877,-500.0,0.00013698,2]
[339934752,1728165045886,-510.25112618,0.00013698,2]
[339934753,1728165045895,-509.51,0.00013698,2]
[339934754,1728165045904,-500.0,0.00013698,2]
[339934755,1728165045915,-500.0,0.00013698,2]
[339934756,1728165045926,-500.0,0.00013698,2]
[339934757,1728165045937,-500.0,0.00013698,2]
[339934758,1728165045947,-682.2,0.00013698,2]
[339934759,1728165045959,-500.0,0.00013698,2]
[339934760,1728165045969,-500.0,0.00013698,2]
[339934761,1728165045980,-520.38,0.00013698,2]
[339934762,1728165045990,-541.66,0.00013698,2]
[339934763,1728165046001,-500.0,0.00013698,2]
[339934764,1728165046013,-500.0,0.00013698,2]
[339934765,1728165046023,-151.0,0.00013698,2]
[339934766,1728165046034,-151.0,0.00013698,2]
[339934767,1728165046044,-151.0,0.00013698,2]
[339934768,1728165046054,-151.0,0.00013698,2]
[339934769,1728165046064,-151.0,0.00013698,2]
[339934770,1728165046074,-151.0,0.00013698,2]
[339934771,1728165046083,-151.0,0.00013698,2]
[339934772,1728165046094,-151.0,0.00013698,2]
[339934773,1728165046105,-151.0,0.00013698,2]
[339934774,1728165046119,-500.0,0.00013698,2]
[339934775,1728165046130,-500.0,0.00013698,2]
[339934776,1728165046142,-500.0,0.00013698,2]
[339934777,1728165046152,-500.0,0.00013698,2]
[339934778,1728165046162,-500.0,0.00013698,2]
[339934779,1728165046172,-500.0,0.00013698,2]
[339934780,1728165046183,-786.4,0.00013698,2]
[339934781,1728165046195,-500.0,0.00013698,2]
[339934782,1728165046206,-500.0,0.00013698,2]
[339934783,1728165046216,-500.0,0.00013698,2]
[339934784,1728165046227,-500.0,0.00013698,2]
[339934785,1728165046238,-500.0,0.00013698,2]
[339934786,1728165046252,-500.0,0.00013698,2]
[339934787,1728165046264,-654.43,0.00013698,2]
[339934788,1728165046274,-475.08178642,0.00013698,2]
[339934789,1728165046285,-500.0,0.00013698,2]
[339934790,1728165046298,-500.0,0.00013698,2]
[339934791,1728165046310,-500.0,0.00013698,2]
[339934792,1728165046321,-500.0,0.00013698,2]
[339934793,1728165046331,-500.0,0.00013698,2]
[339934794,1728165046342,-659.08,0.00013698,2]
[339934795,1728165046352,-500.0,0.00013698,2]
[339934796,1728165046362,-500.0,0.00013698,2]
[339934797,1728165046375,-500.0,0.00013698,2]
[339934798,1728165046386,-500.0,0.00013698,2]
[339934799,1728165046398,-569.87,0.00013698,2]
[339934800,1728165046408,-504.82293083,0.00013698,2]
[339934801,1728165046420,-500.0,0.00013698,2]
[339934802,1728165046431,-500.0,0.00013698,2]
[339934803,1728165046443,-166.97138734,0.00013698,2]
[339934804,1728165046455,-587.93,0.00013698,2]
[339934805,1728165046466,-500.0,0.00013698,2]
[339934806,1728165046475,-500.0,0.00013698,2]
[339934807,1728165046486,-500.0,0.00013698,2]
[339934808,1728165046495,-1158.5,0.00013698,2]
[339934809,1728165046505,-562.44464436,0.00013698,2]
[339934810,1728165046514,-796.55,0.00013698,2]
[339934811,1728165046523,-500.0,0.00013698,2]
[339934812,1728165046534,-500.0,0.00013698,2]
[339934813,1728165046546,-853.06,0.00013698,2]
[339934814,1728165046556,-500.0,0.00013698,2]
[339934815,1728165046569,-698.89,0.00013698,2]
[339934816,1728165046578,-500.0,0.00013698,2]
[339934817,1728165046588,-565.92,0.00013698,2]
[339934818,1728165046599,-500.0,0.00013698,2]
[339934819,1728165046609,-581.12,0.00013698,2]
[339934820,1728165046619,-599.85,0.00013698,2]
[339934821,1728165046629,-643.22,0.00013698,2]
[339934822,1728165046639,-500.0,0.00013698,2]
[339934823,1728165046649,-500.0,0.00013698,2]
[339934824,1728165046658,-501.19703065,0.00013698,2]